bitfinex/quotes_ETHUSD_20251107
["timestamp","ask_amount","ask_price","bid_price","bid_amount"]
[1762506601951,0.1496,3326.7,3326.6,3.00607226]
[1762506602352,0.1496,3326.7,3326.6,3.33137226]
[1762506602758,0.002,3327.0,3326.7,3.00595892]
[1762506603058,0.1496,3326.7,3326.6,3.00606835]
[1762506603361,0.1496,3326.7,3326.6,3.60739162]
[1762506603567,0.1516,3327.0,3326.9,3.00580119]
[1762506603751,0.1516,3327.0,3326.9,3.33110119]
[1762506604482,0.002,3327.0,3326.9,3.65640119]
[1762506606988,0.002,3327.0,3326.9,3.33110119]
[1762506607291,0.002,3327.0,3326.9,4.28034999]
[1762506608657,0.1496,3326.9,3326.6,0.60132327]
[1762506608877,0.1496,3326.9,3326.7,3.0059819]
[1762506609077,0.1496,3326.9,3326.5,0.001]
[1762506609276,0.6266,3326.9,3326.7,3.0059265]
[1762506609707,0.3492,3326.9,3326.8,3.00589154]
[1762506609907,0.1496,3326.9,3326.8,3.00589154]
[1762506610876,0.1496,3326.9,3326.8,3.93238764]
[1762506612310,0.1496,3326.9,3326.8,4.25768764]
[1762506612617,0.1496,3326.9,3326.8,3.93238764]
[1762506613316,0.1496,3326.9,3326.8,3.60708764]
[1762506613500,0.1496,3326.9,3326.8,3.00589154]
[1762506613696,0.1496,3326.9,3326.8,3.33119154]
[1762506614613,0.002,3327.0,3326.9,3.00580119]
[1762506614922,0.002,3327.0,3326.9,3.02410119]
[1762506616099,0.002,3327.0,3326.9,3.34940119]
[1762506616306,0.002,3327.0,3326.9,4.43424065]
[1762506617317,0.002,3327.0,3326.9,4.10894065]
[1762506619015,0.002,3327.0,3326.9,8.77773773]
[1762506619393,0.0012,3327.0,3326.9,13.12123481]
[1762506619593,0.0012,3327.0,3326.9,8.77773773]
[1762506620197,0.0012,3327.0,3326.9,13.12123481]
[1762506620421,0.0012,3327.2,3327.1,3.00562051]
[1762506620716,0.0012,3327.2,3327.1,9.32765352]
[1762506620915,0.002,3327.6,3327.5,3.0052592]
[1762506621214,0.002,3327.6,3327.5,7.46035628]
[1762506621416,0.002,3327.6,3327.5,8.19116028]
[1762506622388,0.002,3327.6,3327.5,3.8476632]
[1762506622589,0.002,3327.6,3327.5,5.10836503]
[1762506625410,0.002,3328.1,3328.0,3.00480769]
[1762506625735,0.002,3328.1,3328.0,10.54742256]
[1762506625937,0.002,3328.1,3328.0,10.87272256]
[1762506626304,0.005,3328.9,3328.8,3.00408555]
[1762506626510,0.005,3328.9,3328.8,5.08141011]
[1762506626853,0.005,3328.9,3328.8,5.40671011]
[1762506628417,0.005,3328.9,3328.8,10.73388892]
[1762506629129,0.005,3328.9,3328.8,10.88348892]
[1762506632143,0.005,3328.9,3328.8,5.55631011]
[1762506632443,0.005,3328.9,3328.8,5.58635096]
[1762506632843,0.005,3328.9,3328.8,5.55631011]
[1762506633066,0.005,3329.9,3329.7,3.00324538]
[1762506633267,0.005,3329.9,3329.8,0.62562454]
[1762506633629,0.005,3329.9,3329.8,3.32848337]
[1762506634436,0.005,3329.9,3329.8,0.3253]
[1762506634632,0.005,3329.9,3329.2,1.259712]
[1762506634633,0.4678,3329.9,3329.2,0.3253]
[1762506634868,0.4678,3329.9,3328.7,0.1601]
[1762506634869,0.6547,3329.9,3328.7,0.1601]
[1762506635084,0.6547,3329.9,3329.0,1.259712]
[1762506635085,0.4774,3329.8,3329.0,1.259712]
[1762506635368,0.4774,3329.8,3329.3,1.259712]
[1762506635568,0.4774,3329.8,3329.2,1.259712]
[1762506635774,0.4774,3329.8,3329.1,0.42636873]
[1762506635954,0.4774,3329.8,3329.1,3.00379747]
[1762506636565,0.4774,3329.8,3329.0,3.00389655]
[1762506636872,0.4774,3329.8,3329.2,1.259712]
[1762506637672,0.4628,3329.3,3328.7,0.1601]
[1762506637846,0.1919,3329.9,3329.2,1.259712]
[1762506638169,0.1919,3329.9,3329.2,0.3253]
[1762506638367,0.002,3329.8,3329.2,1.585012]
[1762506638575,0.002,3329.8,3329.3,1.71859235]
[1762506639001,0.4852,3329.8,3329.3,1.71859235]
[1762506639363,0.002,3329.8,3329.3,3.46251381]
[1762506639558,0.002,3329.8,3329.3,0.78418035]
[1762506639765,0.002,3329.8,3329.3,0.45888035]
[1762506639973,0.002,3329.8,3329.7,0.3253]
[1762506640494,0.002,3329.8,3329.7,3.32857356]
[1762506640658,0.002,3329.8,3329.7,0.3253]
[1762506640867,0.002,3329.8,3329.5,3.00343941]
[1762506641201,0.002,3329.8,3329.3,3.00357244]
[1762506641496,0.002,3329.8,3329.4,3.53377865]
[1762506641665,0.002,3329.8,3329.5,3.00345373]
[1762506641861,0.002,3329.8,3329.7,0.3253]
[1762506642195,0.0012,3329.8,3329.7,0.3253]
[1762506642380,0.0012,3329.8,3329.4,3.53379179]
[1762506642607,0.0012,3329.8,3329.5,0.35337918]
[1762506643288,0.0012,3329.8,3329.7,0.1496]
[1762506643670,0.4765,3329.8,3329.7,0.1496]
[1762506643872,0.0012,3329.8,3329.7,0.1496]
[1762506644373,0.0012,3329.8,3329.7,0.4749]
[1762506644374,4.22981431,3329.8,3329.7,0.4749]
[1762506644571,5.16901431,3329.8,3329.7,0.1496]
[1762506644958,4.69021431,3329.8,3329.7,0.1496]
[1762506645394,4.22981431,3329.8,3329.7,3.47817356]
[1762506645584,4.22981431,3329.8,3329.7,3.82599092]
[1762506646917,4.22981431,3329.8,3329.7,0.82271736]
[1762506647419,4.22981431,3329.8,3329.7,3.82599092]
[1762506650525,0.0012,3329.8,3329.7,5.08570292]
[1762506650825,0.0012,3329.8,3329.7,2.08242936]
[1762506650997,0.0012,3329.8,3329.7,5.08570292]
[1762506651921,4.22981431,3329.8,3329.7,1.75712936]
[1762506652141,5.16901431,3329.8,3329.7,1.409312]
[1762506655705,5.16901431,3329.8,3329.7,0.1496]
[1762506656334,5.16901431,3329.8,3329.7,3.15287356]
[1762506656530,4.69021431,3329.8,3329.7,3.15287356]
[1762506657145,4.22981431,3329.8,3329.7,3.15287356]
[1762506657522,4.22981431,3329.8,3329.7,0.1496]
[1762506657523,4.69021431,3329.8,3329.7,0.1496]
[1762506658551,5.16901431,3329.8,3329.7,0.1496]
[1762506659449,0.9404,3329.8,3329.7,0.1496]
[1762506660450,0.0012,3329.8,3329.7,3.47817356]
[1762506660620,0.0012,3329.8,3329.7,3.79356944]
[1762506661321,0.4616,3329.8,3329.7,3.46826944]
[1762506661544,0.0012,3329.8,3329.7,3.46826944]
[1762506661745,0.0012,3329.8,3329.7,3.79356944]
[1762506662481,0.0012,3329.8,3329.7,4.37477344]
[1762506662776,0.4616,3329.8,3329.7,3.31866944]
[1762506662978,0.0012,3329.8,3329.7,3.31866944]
[1762506663357,0.0012,3329.8,3329.7,3.64396944]
[1762506663679,0.0012,3329.8,3329.7,3.96926944]
[1762506664053,0.0012,3329.8,3329.7,3.64396944]
[1762506664963,0.0004,3329.8,3329.7,4.04947344]
[1762506665281,0.0004,3329.8,3329.7,5.30918544]
[1762506665490,0.0004,3329.8,3329.7,5.63448544]
[1762506666851,0.0004,3329.8,3329.7,8.80348544]
[1762506668595,0.0004,3329.8,3329.7,5.63448544]
[1762506668756,0.0004,3329.8,3329.7,6.34548544]
[1762506671198,0.002,3330.1,3329.7,6.34548544]
[1762506671199,0.002,3330.1,3330.0,4.668219]
[1762506671376,0.002,3330.5,3330.0,4.668219]
[1762506671377,0.002,3330.5,3330.3,1.665216]
[1762506671548,0.002,3330.5,3330.4,4.47447274]
[1762506671901,0.002,3330.5,3330.4,4.79977274]
[1762506672103,0.002,3330.5,3330.4,4.76974632]
[1762506672389,0.002,3330.5,3330.4,4.77074632]
[1762506672545,0.002,3330.5,3330.4,5.42857442]
[1762506672753,0.002,3330.5,3330.4,6.14057442]
[1762506673052,0.002,3330.5,3330.4,5.81527442]
[1762506673451,0.002,3330.5,3330.4,6.14057442]
[1762506676692,0.002,3331.2,3331.1,3.00201134]
[1762506676890,0.002,3331.2,3331.1,4.97372334]
[1762506677087,0.4973,3331.2,3331.1,4.97372334]
[1762506677298,0.002,3331.2,3331.1,4.26172334]
[1762506677498,0.002,3331.2,3331.1,4.29174345]
[1762506677729,0.002,3331.2,3331.1,5.82314095]
[1762506677912,0.002,3331.2,3331.1,5.79312084]
[1762506678277,0.002,3331.2,3331.1,6.11842084]
[1762506679228,0.002,3331.2,3331.1,9.28742084]
[1762506680016,0.002,3331.2,3331.1,8.88191684]
[1762506680231,0.002,3331.2,3331.1,6.11842084]
[1762506680420,0.002,3331.2,3331.1,9.28742084]
[1762506680582,0.002,3331.2,3331.1,6.11842084]
[1762506681409,0.002,3331.2,3331.1,9.28742084]
[1762506681713,0.002,3331.2,3331.1,6.82942084]
[1762506682280,0.002,3331.2,3331.1,6.50412084]
[1762506682616,0.002,3331.2,3331.1,10.35412084]
[1762506682811,0.002,3331.2,3331.1,9.94861684]
[1762506683378,0.4973,3331.2,3331.1,7.65260484]
[1762506683616,0.002,3331.2,3331.1,9.31782084]
[1762506683816,0.002,3331.2,3331.1,8.38340884]
[1762506684052,0.002,3331.2,3331.1,9.31782084]
[1762506684259,0.4973,3331.2,3331.1,9.31782084]
[1762506684922,0.002,3331.2,3331.1,9.31782084]
[1762506685123,0.4973,3331.2,3331.1,9.31782084]
[1762506685323,0.002,3331.2,3331.1,9.31782084]
[1762506685663,0.002,3331.2,3331.1,9.64312084]
[1762506685850,0.002,3331.2,3331.1,9.96842084]
[1762506686632,0.002,3331.2,3331.1,10.11802084]
[1762506687850,0.0012,3331.2,3331.1,9.79272084]
[1762506688173,0.0012,3331.2,3331.1,10.50472084]
[1762506688629,0.0012,3331.2,3331.1,5.94272084]
[1762506688832,0.4965,3331.2,3331.1,6.32942084]
[1762506689033,0.9576,3331.2,3331.1,5.61742084]
[1762506689760,0.4965,3331.2,3331.1,5.61742084]
[1762506691151,0.9576,3331.2,3331.1,5.61742084]
[1762506691685,0.4965,3331.2,3331.1,5.61742084]
[1762506692686,0.0012,3331.2,3331.1,5.61742084]
[1762506693073,0.4965,3331.2,3331.1,5.61742084]
[1762506693279,0.0012,3331.2,3331.1,5.61742084]
[1762506693481,0.0012,3331.2,3331.1,5.94272084]
[1762506693865,0.0012,3331.2,3331.1,5.61742084]
[1762506694065,0.0012,3331.2,3331.1,5.94272084]
[1762506694349,0.4965,3331.2,3331.1,9.46742084]
[1762506694751,0.0012,3331.2,3331.1,9.46742084]
[1762506694978,0.0012,3331.2,3331.1,9.79272084]
[1762506697607,0.007,3331.9,3331.8,3.40688463]
[1762506697826,0.007,3331.9,3331.8,6.34473254]
[1762506698256,0.007,3331.9,3331.8,6.77569383]
[1762506698690,0.007,3331.9,3331.8,7.10099383]
[1762506699497,1e-08,3331.9,3331.8,7.47397855]
[1762506699698,0.187,3332.6,3332.0,3.40670448]
[1762506699995,0.187,3332.6,3332.5,3.40625418]
[1762506700360,0.4964,3332.6,3332.5,3.40625418]
[1762506700890,0.4964,3332.6,3332.5,4.66596618]
[1762506702112,0.9555,3332.6,3332.5,4.66596618]
[1762506702461,0.9555,3332.6,3332.5,8.51596618]
[1762506702774,0.9555,3332.6,3332.5,9.66765511]
[1762506703782,0.4964,3332.6,3332.5,9.66765511]
[1762506703981,0.4964,3332.6,3332.5,5.81765511]
[1762506704294,0.002,3332.7,3332.5,5.81765511]
[1762506704295,0.002,3332.7,3332.6,4.66587614]
[1762506704597,0.002,3332.7,3332.6,4.99117614]
[1762506704899,0.002,3332.7,3332.6,6.68693767]
[1762506705264,0.002,3332.7,3332.6,7.41831702]
[1762506705460,0.002,3332.7,3332.6,7.41264617]
[1762506705695,0.002,3332.7,3332.6,7.07263767]
[1762506705894,0.4638,3332.7,3332.6,1.77596553]
[1762506706198,0.4638,3332.7,3332.6,1.665216]
[1762506706781,0.4638,3332.7,3332.6,4.66587614]
[1762506707212,0.4638,3332.7,3332.6,1.665216]
[1762506707575,0.4638,3332.7,3332.6,1.814816]
[1762506707778,0.4638,3332.7,3332.6,4.81547614]
[1762506708017,0.4638,3332.7,3332.6,6.10091847]
[1762506708388,0.002,3332.7,3332.6,6.10091847]
[1762506708593,0.002,3332.7,3332.6,6.42621847]
[1762506708991,0.002,3332.7,3332.6,3.10025833]
[1762506709298,0.9352,3332.7,3332.6,3.10025833]
[1762506709504,0.9352,3332.7,3332.6,1.814816]
[1762506710504,0.9344,3332.7,3332.6,0.1496]
[1762506711300,0.9344,3332.7,3331.3,4.32710753]
[1762506711502,0.4618,3331.5,3331.4,0.405504]
[1762506711692,0.4618,3331.4,3331.2,0.711]
[1762506712018,0.4618,3331.4,3331.3,4.63291904]
[1762506712178,0.4618,3331.4,3331.3,0.52099267]
[1762506712385,0.1832,3331.6,3331.4,0.405504]
[1762506712586,0.4618,3331.4,3331.3,0.1496]
[1762506712780,0.4618,3331.4,3331.1,0.001]
[1762506712986,0.4618,3331.2,3331.1,0.406504]
[1762506713188,0.4618,3331.2,3331.1,0.001]
[1762506713388,0.9332,3331.2,3331.1,0.1506]
[1762506713888,0.4618,3331.2,3331.1,4.04000981]
[1762506714506,0.4618,3331.2,3331.1,1.03799847]
[1762506714906,0.1832,3331.6,3331.4,1.665216]
[1762506715128,0.1832,3331.6,3331.4,0.405504]
[1762506715440,0.4618,3331.5,3331.1,3.00295625]
[1762506715938,0.4618,3331.5,3331.4,0.1496]
[1762506716806,0.1832,3331.9,3331.5,0.405504]
[1762506717213,0.4714,3331.8,3331.4,0.405504]
[1762506717410,0.1832,3331.9,3331.5,1.60044389]
[1762506717637,0.4714,3332.2,3331.8,0.405504]
[1762506717958,0.4714,3332.2,3332.1,0.1496]
[1762506718439,0.9332,3332.2,3332.1,0.1496]
[1762506719134,0.9332,3332.2,3332.1,0.555104]
[1762506719630,0.9332,3332.2,3332.1,0.91073205]
[1762506719834,0.9332,3332.2,3332.1,0.50522805]
[1762506720031,0.9332,3332.2,3332.1,0.1496]
[1762506720413,0.4618,3332.2,3332.1,0.1496]
[1762506720642,0.9332,3332.2,3332.1,3.9996]
[1762506721343,0.9332,3332.2,3330.9,0.001]
[1762506721641,0.4618,3331.2,3330.9,3.00317707]
[1762506721862,0.4618,3331.2,3331.1,0.30141771]
[1762506722033,0.9332,3331.2,3331.1,0.001]
[1762506728243,3.93512122,3331.2,3331.1,0.001]
[1762506728443,0.9332,3331.2,3330.9,0.001]
[1762506728671,0.4618,3331.0,3330.9,0.001]
[1762506729053,0.9332,3331.0,3330.9,0.001]
[1762506733374,0.9324,3331.0,3330.9,0.001]
[1762506735041,0.461,3331.0,3330.9,0.001]
[1762506735248,0.9391,3331.0,3330.9,0.001]
[1762506740696,2.198812,3331.0,3330.9,0.001]
[1762506741715,0.9391,3331.0,3330.9,0.001]
[1762506741885,2.198812,3331.0,3330.9,0.001]
[1762506742966,0.9391,3331.0,3330.9,0.001]
[1762506750709,0.9391,3331.0,3330.9,0.1506]
[1762506752395,0.9391,3331.0,3330.9,0.001]
[1762506752731,5.1652201,3331.0,3330.9,0.001]
[1762506753893,8.16732157,3331.0,3330.9,0.001]
[1762506755312,9.42703357,3331.0,3330.9,0.001]
[1762506756233,9.42623357,3331.0,3330.9,0.001]
[1762506756602,3.00246201,3330.6,3330.5,0.001]
[1762506756802,8.97839411,3330.6,3330.5,0.001]
[1762506757001,9.45649411,3330.6,3330.5,0.001]
[1762506765656,0.1496,3330.5,3330.4,0.001]
[1762506765836,3.00327356,3329.7,3329.6,0.001]
[1762506766035,3.00354418,3329.4,3329.0,0.001]
[1762506766238,8.94657628,3329.4,3329.0,0.001]
[1762506766469,9.41057628,3329.4,3329.0,0.001]
[1762506768581,6.4070321,3329.4,3329.0,0.001]
[1762506768759,1.716912,3329.4,3329.0,0.001]
[1762506768954,2.180912,3329.4,3329.0,0.001]
[1762506769384,5.18445618,3329.4,3329.0,0.001]
[1762506769569,2.180912,3329.4,3329.0,0.001]
[1762506769884,1.716912,3329.4,3329.0,0.001]
[1762506770088,2.180912,3329.4,3329.0,0.001]
[1762506770969,5.18445618,3329.4,3329.0,0.001]
[1762506772683,2.180912,3329.4,3329.0,0.001]
[1762506774470,0.4572,3329.4,3329.0,0.001]
[1762506774671,0.1496,3329.7,3329.3,0.3289]
[1762506775282,0.6136,3329.7,3329.3,0.3289]
[1762506775479,0.6136,3329.7,3329.3,0.001]
[1762506776549,0.1496,3329.7,3329.3,0.001]
[1762506776944,0.1496,3329.9,3329.6,0.3279]
[1762506777147,0.1496,3330.2,3329.8,0.3279]
[1762506777345,0.1932,3330.9,3330.2,0.4948]
[1762506777557,4.6901201,3330.7,3329.4,0.3279]
[1762506777760,0.464,3330.6,3329.4,0.3279]
[1762506777961,0.464,3330.6,3329.5,3.00345397]
[1762506778178,0.6572,3330.9,3329.7,3.00327356]
[1762506778582,0.464,3330.8,3329.8,0.3279]
[1762506778963,0.4632,3330.8,3329.8,3.33108176]
[1762506779146,0.4632,3330.8,3329.8,0.3279]
[1762506779353,0.1932,3330.9,3329.8,0.3279]
[1762506779553,0.1932,3330.9,3329.9,0.1587612]
[1762506779883,0.1932,3330.9,3329.9,3.16185353]
[1762506780080,0.1932,3330.9,3329.9,0.4874612]
[1762506780281,0.1952,3330.9,3329.9,0.1587612]
[1762506781183,0.464,3330.8,3329.9,3.16184972]
[1762506781386,0.464,3330.8,3329.9,0.1587612]
[1762506781587,0.4572,3330.0,3329.3,0.001]
[1762506781750,0.464,3330.8,3329.5,3.00344989]
[1762506781957,0.464,3330.8,3329.9,0.3287]
[1762506782151,0.464,3330.8,3330.0,0.3287]
[1762506782673,0.464,3330.8,3330.1,0.1677]
[1762506787289,0.1496,3330.6,3330.1,0.1677]
[1762506789898,0.6136,3330.6,3330.1,0.1677]
[1762506790270,0.464,3330.5,3330.0,0.1496]
[1762506796893,0.4844,3330.1,3330.0,0.1496]
[1762506797078,0.464,3330.5,3330.0,0.1496]
[1762506798101,0.464,3330.5,3330.0,0.1506]
[1762506798102,0.4844,3330.1,3330.0,0.1506]
[1762506798690,0.4544,3330.4,3330.0,0.1506]
[1762506798892,0.4844,3330.1,3330.0,0.001]
[1762506799297,0.9388,3330.1,3330.0,0.001]
[1762506800931,3.94171282,3330.1,3330.0,0.001]
[1762506801790,3.94091282,3330.1,3330.0,0.001]
[1762506802403,0.938,3330.1,3330.0,0.001]
[1762506803605,3.94091282,3330.1,3330.0,0.001]
[1762506804619,5.20062482,3330.1,3330.0,0.001]
[1762506805309,2.197712,3330.1,3330.0,0.001]
[1762506806127,5.20062482,3330.1,3330.0,0.001]
[1762506806916,2.197712,3330.1,3330.0,0.001]
[1762506807222,5.20062482,3330.1,3330.0,0.001]
[1762506812367,13.87746368,3330.1,3330.0,0.001]
[1762506812538,14.28296768,3330.1,3330.0,0.001]
[1762506813350,14.40330408,3330.1,3330.0,0.001]
[1762506815931,14.28296768,3330.1,3330.0,0.001]
[1762506816843,14.28496768,3330.1,3330.0,0.001]
[1762506817808,9.54104425,3330.1,3330.0,0.001]
[1762506818151,1.261712,3330.1,3330.0,0.3305]
[1762506818545,1.261712,3330.1,3330.0,0.001]
[1762506819341,4.26462482,3330.1,3330.0,0.001]
[1762506820958,5.20522482,3330.1,3330.0,0.001]
[1762506821343,4.73082482,3330.1,3330.0,0.001]
[1762506822237,1.261712,3330.1,3330.0,0.3305]
[1762506822416,4.26462482,3330.1,3330.0,0.3305]
[1762506823059,1.261712,3330.1,3330.0,0.3305]
[1762506823723,4.26462482,3330.1,3330.0,0.3305]
[1762506824554,4.26382482,3330.1,3330.0,0.3305]
[1762506826855,1.260912,3330.1,3330.0,0.3305]
[1762506827221,4.26382482,3330.1,3330.0,0.3305]
[1762506828553,1.260912,3330.1,3330.0,0.3305]
[1762506828759,4.26382482,3330.1,3330.0,0.3305]
[1762506831639,0.002,3330.1,3330.0,0.3305]
[1762506831937,0.1516,3330.1,3330.0,0.3305]
[1762506833845,0.1516,3330.1,3330.0,0.66]
[1762506834044,0.1516,3330.1,3330.0,0.3305]
[1762506834244,0.1516,3330.1,3330.0,0.66]
[1762506834445,0.1516,3330.1,3330.0,0.3305]
[1762506835838,0.1516,3330.1,3330.0,0.001]
[1762506835839,7.94553225,3330.1,3330.0,0.001]
[1762506836044,8.41853225,3330.1,3330.0,0.001]
[1762506837457,5.41561943,3330.1,3330.0,0.001]
[1762506840071,4.94261943,3330.1,3330.0,0.001]
[1762506840772,0.1516,3330.1,3330.0,0.3305]
[1762506841274,0.002,3330.1,3330.0,0.66]
[1762506841841,0.002,3330.1,3330.0,0.3305]
[1762506844861,0.002,3330.1,3330.0,0.66]
[1762506847084,0.002,3330.1,3330.0,0.3305]
[1762506847581,0.0012,3330.1,3330.0,0.3305]
[1762506848279,7.79513225,3330.1,3330.0,0.001]
[1762506848485,5.26521943,3330.1,3330.0,0.001]
[1762506848681,8.26813225,3330.1,3330.0,0.001]
[1762506850253,5.26521943,3330.1,3330.0,0.001]
[1762506851086,4.79221943,3330.1,3330.0,0.001]
[1762506851283,0.0012,3330.1,3330.0,0.3305]
[1762506851482,0.0012,3330.1,3330.0,0.66]
[1762506853614,0.0012,3330.1,3330.0,0.3305]
[1762506853907,0.0012,3330.1,3330.0,0.33436243]
[1762506853908,0.4538,3330.1,3330.0,0.33436243]
[1762506854107,0.0012,3330.1,3330.0,0.3305]
[1762506854292,0.0012,3330.1,3330.0,0.001]
[1762506854469,0.0012,3330.1,3330.0,0.3305]
[1762506856889,0.0012,3330.1,3330.0,0.001]
[1762506857114,0.4841,3330.1,3330.0,0.001]
[1762506857284,0.0012,3330.1,3330.0,0.001]
[1762506857914,0.0012,3330.1,3330.0,0.3305]
[1762506858413,0.0012,3330.1,3330.0,0.66]
[1762506860286,0.0012,3330.1,3330.0,0.3305]
[1762506864018,0.0012,3330.1,3330.0,0.4801]
[1762506864225,0.0012,3330.1,3330.0,0.861378]
[1762506865028,0.0012,3330.1,3330.0,1.190878]
[1762506865235,0.0012,3330.1,3330.0,0.4801]
[1762506866019,0.0012,3330.1,3330.0,0.1506]
[1762506866196,0.9669,3330.1,3330.0,0.001]
[1762506866936,0.4841,3330.1,3330.0,0.001]
[1762506870148,0.4833,3330.1,3330.0,0.001]
[1762506871211,0.9661,3330.1,3330.0,0.001]
[1762506872126,8.30743225,3330.1,3330.0,0.001]
[1762506874319,8.19850121,3330.1,3330.0,0.001]
[1762506880229,3.96901282,3330.1,3330.0,0.001]
[1762506883861,0.9661,3330.1,3330.0,0.001]
[1762506884364,3.96901282,3330.1,3330.0,0.001]
[1762506885267,3.48621282,3330.1,3330.0,0.001]
[1762506885470,0.0004,3330.1,3330.0,0.3305]
[1762506885673,0.15,3330.1,3330.0,0.3305]
[1762506886239,0.6348,3330.1,3330.0,0.001]
[1762506886659,0.15,3330.1,3330.0,0.3305]
[1762506887489,0.15,3330.1,3330.0,0.001]
[1762506887788,0.15,3330.1,3330.0,0.3305]
[1762506887990,1.1162,3330.1,3330.0,0.001]
[1762506888294,0.6348,3330.1,3330.0,0.001]
[1762506888793,0.15,3330.1,3330.0,0.001]
[1762506889902,0.15,3330.1,3330.0,0.3305]
[1762506890799,3.63771282,3330.1,3330.0,0.001]
[1762506890971,1.1162,3330.1,3330.0,0.001]
[1762506891374,0.6348,3330.1,3330.0,0.001]
[1762506893110,0.1492,3330.1,3330.0,0.001]
[1762506893881,0.1492,3330.1,3330.0,0.3305]
[1762506895699,0.1492,3330.1,3330.0,0.001]
[1762506897872,0.1492,3330.1,3330.0,0.3305]
[1762506899901,0.1492,3330.1,3330.0,0.001]
[1762506900275,0.1492,3330.1,3330.0,0.3305]
[1762506901016,0.1492,3330.1,3330.0,0.001]
[1762506901205,0.1512,3330.1,3330.0,0.001]
[1762506901576,3.63891282,3330.1,3330.0,0.001]
[1762506901976,4.12031282,3330.1,3330.0,0.001]
[1762506902173,1.1174,3330.1,3330.0,0.001]
[1762506902407,0.636,3330.1,3330.0,0.001]
[1762506902605,0.1512,3330.1,3330.0,0.3305]
[1762506904785,0.636,3330.1,3330.0,0.001]
[1762506905124,0.1512,3330.1,3330.0,0.001]
[1762506905493,1.1174,3330.1,3330.0,0.001]
[1762506905826,0.636,3330.1,3330.0,0.001]
[1762506907084,0.002,3330.1,3330.0,0.66]
[1762506909209,0.002,3330.1,3330.0,1.02631571]
[1762506909385,0.002,3330.1,3330.0,0.66]
[1762506911516,0.002,3330.1,3330.0,0.3305]
[1762506911881,0.9682,3330.1,3330.0,0.001]
[1762506912081,0.4868,3330.1,3330.0,0.001]
[1762506912487,0.002,3330.1,3330.0,0.001]
[1762506912718,3.48971282,3330.1,3330.0,0.001]
[1762506912884,3.97111282,3330.1,3330.0,0.001]
[1762506913522,0.9682,3330.1,3330.0,0.001]
[1762506914685,3.97111282,3330.1,3330.0,0.001]
[1762506914889,0.9682,3330.1,3330.0,0.001]
[1762506915188,3.97111282,3330.1,3330.0,0.001]
[1762506915817,3.97031282,3330.1,3330.0,0.001]
[1762506920011,5.63552882,3330.1,3330.0,0.001]
[1762506920243,5.23002482,3330.1,3330.0,0.001]
[1762506920425,5.3503547,3330.1,3330.0,0.001]
[1762506921628,0.0012,3330.1,3330.0,0.001]
[1762506922021,0.0012,3330.1,3330.0,0.3305]
[1762506933883,0.0012,3330.1,3330.0,0.66]
[1762506934337,0.4683,3330.1,3330.0,0.001]
[1762506934670,0.0012,3330.1,3330.0,0.001]
[1762506935036,3.00411282,3330.1,3330.0,0.001]
[1762506935450,0.0012,3330.1,3330.0,0.3305]
[1762506938666,0.0004,3330.1,3330.0,0.3305]
[1762506939967,0.0004,3330.1,3330.0,0.001]
[1762506940360,0.0004,3330.1,3330.0,0.3305]
[1762506943874,0.0004,3330.1,3330.0,0.66]
[1762506944643,0.0004,3330.1,3330.0,0.3305]
[1762506944848,0.4614,3330.1,3330.0,0.001]
[1762506945049,0.9266,3330.1,3330.0,0.001]
[1762506945762,0.4614,3330.1,3330.0,0.001]
[1762506945966,0.0004,3330.1,3330.0,0.001]
[1762506947056,0.4614,3330.1,3330.0,0.001]
[1762506947277,0.9266,3330.1,3330.0,0.001]
[1762506951383,0.4614,3330.1,3330.0,0.001]
[1762506951692,0.0004,3330.1,3330.0,0.66]
[1762506951891,0.0004,3330.1,3330.0,1.46289039]
[1762506952110,0.0004,3330.1,3330.0,0.66]
[1762506954280,0.0004,3330.1,3330.0,0.3305]
[1762506955317,0.0004,3330.1,3330.0,3.333503]
[1762506955638,0.0004,3330.1,3330.0,3.663003]
[1762506956057,0.0004,3330.1,3330.0,0.3305]
[1762506956354,0.0004,3330.1,3330.0,0.67882358]
[1762506957924,0.0004,3330.1,3330.0,0.3305]
[1762506958320,0.0004,3330.1,3330.0,0.001]
[1762506958635,0.4614,3330.1,3330.0,0.001]
[1762506958838,0.9266,3330.1,3330.0,0.001]
[1762506959229,0.4614,3330.1,3330.0,0.001]
[1762506959401,0.0004,3330.1,3330.0,0.3305]
[1762506959735,0.0004,3330.1,3330.0,0.66385408]
[1762506960939,0.4614,3330.1,3330.0,0.33435408]
[1762506961137,0.4614,3330.1,3330.0,0.001]
[1762506961342,0.4606,3330.1,3330.0,0.001]
[1762506961544,8.26446496,3330.1,3330.0,0.001]
[1762506962436,8.41406496,3330.1,3330.0,0.001]
[1762506962636,8.26446496,3330.1,3330.0,0.001]
[1762506962935,8.38479086,3330.1,3330.0,0.001]
[1762506966027,14.385759,3330.1,3330.0,0.001]
[1762506967561,10.05000686,3330.1,3330.0,0.001]
[1762506967931,14.385759,3330.1,3330.0,0.001]
[1762506968132,14.387759,3330.1,3330.0,0.001]
[1762506969233,3.40877756,3329.7,3329.6,0.001]
[1762506969447,8.2055297,3329.7,3329.6,0.001]
[1762506969646,8.6707297,3329.7,3329.6,0.001]
[1762506969966,8.79108311,3329.7,3329.6,0.001]
[1762506973173,8.38557911,3329.7,3329.6,0.001]
[1762506973381,8.2652257,3329.7,3329.6,0.001]